Cogmind - Beta 13 --- EXPLORER MODE // 2024.07.25 @ 11:48:16 Player: Kino Result: Destroyed by as-61372 with Assembled Maul Performance ------------- Evolutions (1) 500 Regions Visited (3) 600 Robots Destroyed (36) 180 Value Destroyed (1178) 1178 Prototype IDs (0) 0 Alien Tech Used (0) 0 Bonus (0) 0 TOTAL SCORE: 2458 Bonus ------- None Cogmind --------- Core Integrity 0/400 Matter 166/300 Energy 100/100 System Corruption 0% Temperature Cool (0) Movement Core (1350) Ox26 Location -9/Mines Parts ------- > --- POWER (1) -------- (None) > --- PROPULSION (3) --- (None) > --- UTILITY (4) ------ Huge Storage Unit Signal Interpreter Power Shielding > --- WEAPON (2) ------- (None) > --- INVENTORY (25) --- Light Ion Engine Improved Ion Engine Aluminum Leg Aluminum Leg Medium Storage Unit Sensor Array Improved Targeting Computer Light Armor Plating Makeshift Sword Peak State ------------ > --- POWER ------------ Improved Ion Engine > --- PROPULSION ------- Aluminum Leg Aluminum Leg Improved Aluminum Leg > --- UTILITY ---------- Huge Storage Unit Signal Interpreter Improved Targeting Computer Power Shielding > --- WEAPON ----------- Beam Rifle Mini Grenade Launcher > --- INVENTORY -------- Light Ion Engine Improved Ion Engine Medium Storage Unit Sensor Array Improved Targeting Computer Light Armor Plating Makeshift Sword [Rating: 16] Favorites ----------- Power Ion Engine Engine Ion Engine Propulsion Aluminum Leg Leg Aluminum Leg Utility Signal Interpreter Storage Huge Storage Unit Processor Signal Interpreter Protection Power Shielding Weapon Mini Grenade Launcher Energy Gun EM Pulse Gun Ballistic Gun Light Assault Rifle Launcher Mini Grenade Launcher Build | -11 -10 -9 -9 ------- Run | Yrd Mat Mat Min Slots Evolved 3 | . 1 2 . Power . | . . . . Propulsion 1 | . 1 . . Utility 2 | . . 2 . Weapon . | . . . . Parts Attached 23 | 5 10 8 . Power 2 | 1 . 1 . Engine 2 | 1 . 1 . Core . | . . . . Reactor . | . . . . Propulsion 9 | 2 4 3 . Treads . | . . . . Leg 9 | 2 4 3 . Wheel . | . . . . Hover . | . . . . Flight . | . . . . Utility 5 | 2 1 2 . Device . | . . . . Storage 2 | 1 1 . . Processor 2 | 1 . 1 . Hackware . | . . . . Protection 1 | . . 1 . Artifact . | . . . . Weapon 7 | . 5 2 . Energy Gun 3 | . 2 1 . Energy Cannon . | . . . . Ballistic Gun 2 | . 1 1 . Ballistic Cannon . | . . . . Launcher 2 | . 2 . . Special Weapon . | . . . . Impact Weapon . | . . . . Slashing Weapon . | . . . . Piercing Weapon . | . . . . Special Melee Weapon . | . . . . Unidentified Prototypes . | . . . . Corrupted Parts 1 | . 1 . . System Corruption 2 | . 2 . . Parts Lost 12 | . . 5 7 Power 1 | . . . 1 Propulsion 6 | . . 3 3 Utility 1 | . . . 1 Weapon 4 | . . 2 2 Highest Loss Streak 3 | . . 2 3 To Critical Strikes 1 | . . 1 . Average Slot Usage (%) 91 | . 99 92 82 Engine 10 | . 12 10 9 Leg 25 | . 36 23 17 Storage 10 | . 12 10 10 Processor 17 | . 12 20 19 Protection 7 | . . 10 10 Energy Gun 6 | . 12 3 7 Ballistic Gun 4 | . 9 4 . Launcher 7 | . 2 10 9 Naked Turns . | . . . . Heaviest Build 92 | 15 88 92 92 Greatest Support 33 | 20 30 33 33 Greatest Overweight (x) 29 | . 2 6 29 Average Overweight (x) 2 | . 1 3 4 Largest Inventory Capacity 25 | 10 25 25 25 Average Capacity 23 | 9 23 25 25 Most Carried 13 | 7 13 11 9 Average Carried 8 | 4 7 9 7 Final Capacity 25 | 10 25 25 25 Final Carried 12 | 7 12 6 9 Class Distribution -------------------- 100% | Hacker-Mutant Dominant Class ---------------- Hacker-Mutant | -10/Materials Hacker-Mutant | -9/Materials Hacker-Mutant | -9/Mines Resources | -11 -10 -9 -9 ----------- Run | Yrd Mat Mat Min Matter Collected 643 | 84 235 155 169 Remotely . | . . . . Salvage Created 964 | . 315 530 119 Parts 68 | . 12 47 9 Haulers Intercepted . | . . . . Recyclers Shooed 1 | . 1 . . Parts Field Recycled . | . . . . Retrieved Matter . | . . . . Parts Self-Destructed . | . . . . Prevented . | . . . . Kills | -11 -10 -9 -9 ------- Run | Yrd Mat Mat Min Combat Hostiles Destroyed 30 | . 6 17 7 Guns 9 | . 5 3 1 AOE 20 | . 1 13 6 Classes Destroyed 11 | . 2 6 3 Worker 2 | . . 1 1 Builder 1 | . . . 1 Tunneler 1 | . . 1 . Recycler 1 | . . 1 . Watcher 2 | . 1 1 . Swarmer 3 | . . 3 . Grunt 19 | . 6 9 4 Brawler 1 | . . 1 . Sentry 4 | . . 4 . Demolisher 2 | . . . 2 Assembled 1 | . . . 1 Best Kill Streak 8 | . 3 8 3 Combat Bots Only 3 | . 3 3 2 Max Kills in Single Turn 3 | . 1 3 2 Gunslinging . | . . . . Exploded 2 | . 1 2 2 Melee . | . . . . Uniques/NPCs Destroyed . | . . . . Combat | -11 -10 -9 -9 -------- Run | Yrd Mat Mat Min Hostile Shots Fired 150 | . 48 71 31 Missed 37 | . 11 19 7 Damage Taken 1504 | . 320 608 576 Core 486 | . 68 152 266 Absorbed by Shields . | . . . . Redirected to Shielding 38 | . . 18 20 Ignored by Resistances 910 | . 197 379 334 Core Remaining (%) 86 | 100 72 . . Volleys Fired 86 | . 25 48 13 Largest 2 | . 2 2 2 Hottest 86 | . 60 70 86 Shots Fired 133 | . 50 63 20 Gun 96 | . 50 37 9 Cannon . | . . . . Launcher 37 | . . 26 11 Special . | . . . . Kinetic 49 | . 25 24 . Thermal 9 | . . . 9 Explosive 37 | . . 26 11 Electromagnetic 38 | . 25 13 . Robot Hit Streak 21 | . 18 20 21 Robot Miss Streak 1 | . 1 1 1 Penetration Max . | . . . . Secondary Targets 2 | . 2 . . Max Gunslinging Chain 1 | . 1 . . Shots Hit Robots 121 | . 44 58 19 Core Hits 71 | . 15 31 25 Critical Kills . | . . . . Critical Parts Destroyed 1 | . 1 . . Critical Strikes 1 | . 1 . . Destroy 1 | . 1 . . Melee Attacks . | . . . . Impact . | . . . . Slashing . | . . . . Piercing . | . . . . Sneak Attacks . | . . . . Combat Hostiles . | . . . . Follow-up Attacks . | . . . . Damage Inflicted 3002 | . 614 1642 746 Guns 948 | . 488 332 128 Cannons . | . . . . Explosions 2031 | . 126 1306 599 Melee . | . . . . Ramming 23 | . . 4 19 Kinetic 333 | . 161 172 . Thermal 254 | . 126 . 128 Explosive 1905 | . . 1306 599 Electromagnetic 487 | . 327 160 . Impact . | . . . . Slashing . | . . . . Piercing . | . . . . Highest Corruption 2 | . 2 . . Average Corruption 2 | . 2 . . Corruption Purged . | . . . . Corruption Blocked . | . . . . Overload Shots . | . . . . Overflow Damage 124 | . . 99 25 Projectiles . | . . . . Explosions 124 | . . 99 25 Melee . | . . . . Knockbacks . | . . . . Impact . | . . . . Kinetic . | . . . . Secondary . | . . . . Self-Inflicted Damage 352 | . 16 235 101 Shots 19 | . 1 14 4 Rammed . | . . . . Targets Rammed 3 | . . 1 2 Kicked 3 | . . 1 2 Crushed . | . . . . Highest Temperature 222 | . 222 20 72 Average Temperature 54 | . 89 5 30 Received Heat Transfer 618 | . 291 279 48 Siege Activations . | . . . . Robots Corrupted 1 | . . 1 . Combat Hostiles 1 | . . 1 . Parts Fried 4 | . 4 . . Impact Corruptions . | . . . . Robots Melted . | . . . . Combat Hostiles . | . . . . Parts Melted . | . . . . Heat Transferred 433 | . 100 . 333 Parts Sabotaged . | . . . . Parts Stolen . | . . . . Parts Stripped . | . . . . Power Chain Reactions 1 | . 1 . . Alert | -11 -10 -9 -9 ------- Run | Yrd Mat Mat Min Peak Influence 301 | . 210 301 165 Initial 16 | . . . 16 Average 60 | . 67 61 61 Maximum Alert Level 1 | . 1 1 . Low Security (%) 91 | 100 89 87 100 Level 1 8 | . 10 13 . Level 2 . | . . . . Level 3 . | . . . . Level 4 . | . . . . Level 5 . | . . . . High Security . | . . . . Max Security . | . . . . Squads Dispatched 3 | . . 3 . Investigation 1 | . . 1 . Extermination . | . . . . Reinforcement 2 | . . 2 . Assault . | . . . . Garrison . | . . . . Intercept . | . . . . Searches Triggered . | . . . . Construction Impeded 1 | . . 1 . Haulers Reinforced . | . . . . Active Scanning Responses . | . . . . Cargo Convoy Interrupts . | . . . . Stealth | -11 -10 -9 -9 --------- Run | Yrd Mat Mat Min Distress Signals 2 | . . 1 1 Communications Jammed . | . . . . Distress Signals . | . . . . Times Spotted 40 | . 8 21 11 Peak Tracking Total 4 | . 4 4 3 Tactical Retreats 1 | . . . 1 Traps | -11 -10 -9 -9 ------- Run | Yrd Mat Mat Min Traps Triggered . | . . . . Indirectly . | . . . . Trap Hack Attempts . | . . . . Triggered . | . . . . Disarmed . | . . . . Reprogrammed . | . . . . Reused . | . . . . Traps Extracted . | . . . . Installed . | . . . . Triggered . | . . . . Machines | -11 -10 -9 -9 ---------- Run | Yrd Mat Mat Min Machines Disabled 5 | . 1 4 . Max in Single Turn 2 | . 1 2 . Machines Repaired . | . . . . Machines Dismantled . | . . . . Machines Sabotaged . | . . . . Overloaded Fab Kills . | . . . . Hacking | -11 -10 -9 -9 --------- Run | Yrd Mat Mat Min Machines Accessed 2 | . . 2 . Terminals 2 | . . 2 . Fabricators . | . . . . Repair Stations . | . . . . Recycling Units . | . . . . Scanalyzers . | . . . . Garrison Access . | . . . . Total Hacks 4 | . . 4 . Successful 2 | . . 2 . Failed 2 | . . 2 . Catastrophic 1 | . . 1 . Database Lockouts . | . . . . Manual . | . . . . Terminals 4 | . . 4 . Fabricators . | . . . . Repair Stations . | . . . . Recycling Units . | . . . . Scanalyzers . | . . . . Garrison Access . | . . . . Terminal Hacks 2 | . . 2 . Alert Level 1 | . . 1 . Unreport Threat 1 | . . 1 . Fabricator Hacks . | . . . . Repair Station Hacks . | . . . . Recycling Unit Hacks . | . . . . Scanalyzer . | . . . . Garrison Access Hacks . | . . . . Unauthorized Hacks . | . . . . Terminals . | . . . . Fabricators . | . . . . Repair Stations . | . . . . Recycling Units . | . . . . Scanalyzers . | . . . . Garrison Access . | . . . . Data Cores Recovered . | . . . . Used . | . . . . Hacking Detections 1 | . . 1 . Full Trace Events 1 | . . 1 . Feedback Events . | . . . . Feedback Blocked . | . . . . Robot Schematics Acquired . | . . . . Robots Built . | . . . . Authchips . | . . . . Time . | . . . . Total Robot Build Rating . | . . . . Part Schematics Acquired . | . . . . Parts Built . | . . . . Authchips . | . . . . Time . | . . . . Total Part Build Rating . | . . . . Parts Repaired . | . . . . Time . | . . . . Parts Recycled . | . . . . Recycled Matter . | . . . . Retrieved Matter . | . . . . Retrieved Components . | . . . . Parts Scanalyzed . | . . . . Part Schematics Acquired . | . . . . Parts Damaged . | . . . . Bothacking | -11 -10 -9 -9 ------------ Run | Yrd Mat Mat Min Used RIF Installer . | . . . . Robots Hacked . | . . . . Non-combat . | . . . . Combat . | . . . . Robot Hacks Applied . | . . . . Relay Couplers Released . | . . . . Fabnet Peak Effective % . | . . . . Robots Rewired . | . . . . Allies Hacked . | . . . . Hacks Repelled . | . . . . Allies | -11 -10 -9 -9 -------- Run | Yrd Mat Mat Min Total Allies . | . . . . Largest Group . | . . . . Highest-Rated Group . | . . . . Highest-Rated Ally . | . . . . Total Orders . | . . . . Ally Attacks . | . . . . Total Damage . | . . . . Kills . | . . . . Allies Corrupted . | . . . . Allies Melted . | . . . . Intel | -11 -10 -9 -9 ------- Run | Yrd Mat Mat Min Robot Analysis Total . | . . . . Derelict Logs Recovered . | . . . . Drone Launches . | . . . . Drone Recoveries . | . . . . Exploration | -11 -10 -9 -9 ------------- Run | Yrd Mat Mat Min Turns Passed 1969 | 74 519 900 476 Spaces Moved 598 | 56 188 237 117 Core 23 | 14 . . 9 Treads . | . . . . Legs 575 | 42 188 237 108 Wheels . | . . . . Hover . | . . . . Flight . | . . . . Fastest Speed 50 | 50 120 260 260 Average Speed 285 | 102 225 330 379 Slowest Speed 1500 | 120 260 540 1500 Overloaded Moves . | . . . . Propulsion Burnouts . | . . . . Robots Hopped . | . . . . Cave-ins Triggered . | . . . . Exploration Rate (%) 26 | 4 39 29 33 Regions Visited 3 Branch Regions 1 Pre-discovered Areas . | . . . . Known Exits Taken 3 | 1 1 1 . Unknown Exits Taken . | . . . . Scrap Searched . | . . . . Spaces Dug . | . . . . Terrain Destroyed 229 | . 3 137 89 Melee . | . . . . Projectile . | . . . . AOE 229 | . 3 137 89 Terrain Rammed . | . . . . Walls Destroyed . | . . . . Machines Disabled . | . . . . Actions | -11 -10 -9 -9 --------- Run | Yrd Mat Mat Min Total 742 | 72 239 296 135 Wait 4 | . 4 . . Move 595 | 55 187 236 117 Hop . | . . . . Pick Up 29 | 12 12 2 3 Fast Attach . | . . . . Attach 18 | 5 6 7 . Detach . | . . . . Swap 5 | . 4 1 . Drop 2 | . 1 1 . Fire 86 | . 25 48 13 Melee . | . . . . Ram . | . . . . Kick 3 | . . 1 2 Crush . | . . . . Escape Stasis . | . . . . Rewire . | . . . . Trap . | . . . . Miscellaneous . | . . . . Route ------- -11/Scrapyard -10/Materials -9/Materials -9/Mines History --------- Turn | Location | Event 3 | -11/Scrapyard | Identified exit to Materials 3 | -11/Scrapyard | Discovered exit to Materials (range 15) 75 | -11/Scrapyard | Entered Materials 75 | -10/Materials | Evolved 1 slot: Propulsion x1 319 | -10/Materials | Build established: Hacker-Mutant 463 | -10/Materials | Identified exit to Materials 463 | -10/Materials | Discovered exit to Materials (range 10) 594 | -10/Materials | Entered another Materials area 594 | -9/Materials | Evolved 2 slots: Utility x2 1449 | -9/Materials | Identified exit to Mines 1449 | -9/Materials | Discovered exit to Mines (range 13) 1494 | -9/Materials | Entered Mines 1546 | -9/Mines | A weapon hastily lodged in a ceiling crevice suddenly fell to the ground 1794 | -9/Mines | Assembled infested the area 1799 | -9/Mines | Assisted by a Guerilla fighting off Assembled 1843 | -9/Mines | Core integrity fell below 50% 1871 | -9/Mines | Lost 3 parts (2n1w) 1938 | -9/Mines | Core integrity fell below 20% 1970 | -9/Mines | Lost 3 parts (1p1u1w) 1970 | -9/Mines | Destroyed by as-61372 with Assembled Maul Last Messages --------------- 01928_ U-05 Engineer lays Concrete. 01929_ K-01 Serf collects debris. 01929_ U-05 Engineer lays Concrete. 01930_ U-05 Engineer builds a Wall. 01933_ K-01 Serf collects debris. 01935_ U-05 Engineer builds a Wall. 01936_ Imp. Ion Engine destroyed. 01936_ K-01 Serf collects debris. 01937_ as-89564 destroyed. 01937_ Destroyed Asb. F-torch. 01937_ K-01 Serf destroyed. 01937_ as-81298 destroyed. 01939_ Destroyed Asb. F-torch. 01939_ U-05 Engineer destroyed. 01939_ Imp. Targeting Computer destroyed. 01939_ Destroyed Imp. Targeting Computer. 01939_ Mni. Grenade Launcher destroyed. 01939_ Destroyed Mni. Grenade Launcher. 01954_ Acquired 3 matter. 01955_ The unstable cave ceiling collapses. Map ----- +----------------------------------------------------+ | ???????# ???????? ????????????????# #??? | | ??????? ????????? ????????????????## ##??? | | ??????? ????????? ?????????????????## ###???? | | ??????? ?????????#??????????????????# ####??? | | ??????? ????????????????????????????# * #??? | | ????????????????????????????????????## ## #??? | | ?????????????????????????????????????#### #??? | | ????????????????????????????????????????# #???# # | | ????????????????????????????????????????# #???# # | | ????????????????????????????????????????# #???# # | | ????????????????????????????????????????# #???# # | | ????????????????????????????????????????# #???# # | | ????????????????????????????????????????# #???# # | | ????????????????????????????????????????# ##### | | ????????????????????????????????????????# | | ?????????????????????#??????????????????####### | | ?????????????????????!????????????????????????# | | ?????????????????????# ???????????????????????# | | ?????????????????????# ???????????????????????# | | ?????????????????????# ???????????????????????# | | ????????????????????##%#??????????????????????# | | ???????????????????## $#####???####?????###### | | ???????????????????# ##### ########### | | ???????????????????# # ## # # # | | ????????????????????# # # | | ?????????????????????###@a # # ### ## | | ????????????????????## ! ########### ! # | | ????????????????????# = !%= # ## | | ????????????????????# # ########## #### | | ????????????????????## # # # # # #?? | | ?????????????????????## # ### #########??# | | ??????????????????????# ###????????? | | ??????????????????????# # ###### #??????????? | | ?????????????????????? #####????? #??????????? | | ????????????????????? """ #?????????? ??????????? | | ????????????????????# """ ???????????##?????????? | | ???????????????????? """ ??????????????????????? | | ???????????????????## ?? ??????????????????????? | | ????????????????????????" ??????????????????????? | | ????????????????????????" ??????????????????????? | | ????????????????????????" ??????????????????????? | | ????????????????????????? ??????????????????????? | | ????????????????????????????????????????????????? | | ????????????????????????????????????????????????? | | ????????????????????????????????????????????????? | | ????????????????????????????????????????????????? | | ????????????????????????????????????????????????? | | ????????????????????????????????????????????????? | | ????????????????????????????????????????????????? | | ????????????????????????????????????????????????? | +----------------------------------------------------+ Best States ------------- Heat Dissipation 28 Energy Generation 12 Energy Capacity 265 Matter Stores 300 Matter Capacity 300 Sight Range 16 Terrain Scan Density 10 Resistance: KI 35 Resistance: TH 35 Resistance: EX 35 Resistance: EM 35 Resistance: I 35 Resistance: S 35 Resistance: P 35 Power Shielding 33 Evasion (%) 55 Targeting Accuracy 6 Offensive Hacking 20 Item Schematics ----------------- None Robot Schematics ------------------ None Fabricated ------------ Nothing Alien Tech Used ----------------- None Achievements -------------- None Challenges ------------ None Game ------ Seed SlugGodExoskeleton Manual? 0 Play Time 00:10:50 Cumulative 38.2 hours Start 2024.07.25 @ 08:53:22 End 2024.07.25 @ 11:48:16 Sessions 1 Manual Loads 0 Difficulty Explorer Special Mode None Game No. 94 Rogue 20 Adventurer 46 Explorer 28 Win Type - Total 0 Types 0/0/0/0/0/0/0/0/0 Lore% 10 Gallery% 35 Achievement% 24 Wizard Run 0 Options --------- Layout 1 ASCII 0 Keyboard 0 Movement Mouse Keybinds 0 Fullscreen 1 Font 24/Smallcaps Map View 50x35 Zoom Use 0% Tactical HUD 1 Map Filters NONE Filters NONE Steam 1 RUN: 1b867273-d4ef-4f17-8930-5db8a58715b8